[Event "7th Sharjah Masters 2024"]
[Site "Sharjah"]
[Date "2024.05.19"]
[Round "6.17"]
[White "Dudin, Gleb"]
[Black "Artemiev, Vladislav"]
[Result "0-1"]
[ECO "E24"]
[WhiteElo "2554"]
[BlackElo "2705"]
[Annotator "TA"]
[PlyCount "84"]
[EventDate "2024.05.13"]
[EventType "swiss"]
[EventCountry "UAE"]
[SourceTitle "playchess.com"]
[Source "ChessBase"]
[SourceQuality "1"]
[TimeControl "5400+30"]

{[%evp 9,84,0,0,-25,-9,-22,0,0,16,10,4,9,37,28,21,15,10,-7,0,0,0,0,0,0,0,0,0,-8,0,0,0,0,0,-7,0,-14,-8,-28,-20,-21,-18,-20,-17,-33,-25,-54,-46,-51,-56,-57,-45,-61,-60,-90,-56,-56,-56,-56,0,-22,-9,-87,-88,-168,-163,-199,-221,-259,-259,-249,-216,-273,-258,-376,-408,-580,-576]} 1. d4 {[%emt 0:00:06]} Nf6 {[%emt 0:04:14]} 2. c4 {[%emt 0:00:16]} e6 {[%emt 0:00:22]} 3. Nc3 {[%emt 0:00:26]} Bb4 {[%emt 0:07:09]} 4. a3 {[%emt 0:01:25]} Bxc3+ {[%emt 0:00:22]} 5. bxc3 {[%emt 0:00:08]} Nc6 {[%emt 0:26:11]} 6. f3 {[%emt 0:00:53]} b6 {[%emt 0:05:48]} 7. e4 {[%emt 0:00:51][%cal Be2e4,Be4e5][%mdl 32]} h6 {[%emt 0:02:49]} 8. Bd3 {[%emt 0:01:10] The position is equal.} Na5 {[%emt 0:03:51]} 9. Nh3 {[%emt 0:01:01]} d6 {[%emt 0:04:18]} 10. O-O {[%emt 0:05:27]} Ba6 {[%emt 0:08:56][%cal Od8d7]} 11. f4 {[%emt 0:11:01]} Nd7 {[%emt 0:00:42][%cal Oe8g8]} 12. e5 {[%emt 0:09:07]} Qe7 {[%emt 0:09:14]} (12... Nxc4 $2 13. Qa4 $18) 13. c5 {[%emt 0:18:18]} Bxd3 {[%emt 0:00:19]} 14. cxd6 {[%emt 0:01:04]} cxd6 {[%emt 0:00:23]} 15. Qxd3 {[%emt 0:00:06] aiming for a4.} Nb3 {[%emt 0:02:28]} 16. Rb1 {[%emt 0:02:22]} Nxc1 {[%emt 0:00:08]} 17. Rbxc1 {[%emt 0:00:13]} O-O {[%emt 0:01:02]} 18. Qb5 {[%emt 0:04:58]} dxe5 {[%emt 0:03:58]} 19. fxe5 {[%emt 0:01:49]} f6 {[%emt 0:00:38]} 20. exf6 {[%emt 0:10:09]} Rxf6 {[%emt 0:05:03]} 21. Qc6 {[%emt 0:09:46]} Raf8 {[%emt 0:07:27]} 22. Qc7 {[%emt 0:02:18]} Qf7 {[%emt 0:04:13]} 23. Rxf6 {[%emt 0:09:36]} Nxf6 {[%emt 0:00:05]} 24. Qxf7+ {[%emt 0:02:20]} Kxf7 $11 {[%emt 0:00:06][%mdl 4096] Endgame. KRN-KRN} 25. Nf4 {[%emt 0:01:07]} Rc8 {[%emt 0:01:35]} 26. Nd3 {[%emt 0:03:34]} Ke8 {[%emt 0:01:12]} 27. a4 {[%emt 0:02:39][%cal Oa4a5]} Ne4 {[%emt 0:00:33]} 28. c4 {[%emt 0:00:43]} Rd8 {[%emt 0:00:26]} 29. Nf4 {[%emt 0:00:51]} Ke7 {[%emt 0:00:08]} 30. Ne2 {[%emt 0:01:13]} Rc8 {[%emt 0:00:38]} 31. h3 {[%emt 0:00:31]} e5 {[%emt 0:00:50]} 32. dxe5 {[%emt 0:00:22][%cal Oa4a5]} Ke6 {[%emt 0:00:31]} 33. a5 {[%emt 0:00:26]} Nd2 {[%emt 0:00:16]} (33... bxa5 34. Ra1 $11) (33... Kxe5 $15 34. axb6 axb6) 34. axb6 {[%emt 0:00:27]} axb6 {[%emt 0:00:02]} 35. c5 {[%emt 0:00:45]} bxc5 $17 {[%emt 0:00:31] Black is more active.} ({Reject} 35... Rxc5 36. Nf4+ Kf5 (36... Kxe5 37. Nd3+ Kd4 38. Nxc5 $11) 37. Rxc5 bxc5 38. e6 $11) 36. Rc2 {[%emt 0:00:30]} (36. Ra1 $17 {was called for.}) 36... Ne4 $19 {[%emt 0:00:08]} 37. Nd4+ {[%emt 0:00:31]} Kxe5 {[%emt 0:00:06]} (37... cxd4 38. Rxc8 Kxe5 39. Rd8 $18) 38. Nf3+ {[%emt 0:00:29]} Kf4 {[%emt 0:01:18]} 39. Rc4 {[%emt 0:00:31]} Ke3 {[%emt 0:00:35] Dodges Nd2} 40. Ne5 {[%emt 0:00:16]} Re8 {[%emt 0:00:34]} 41. Nd7 {[%emt 0:00:44]} (41. Nf3 {is a better defense.}) 41... Kd3 {[%emt 0:00:15]} 42. Rc1 {[%emt 0:00:07]} (42. Ra4 $142 c4 43. Nb6) 42... c4 {[%emt 0:00:11] Weighted Error Value: White=0.23 (precise) /Black=0.08 (flawless) .  Mistake:       	White=4     	Black=1      Inaccurate:     	White=2     	Black=3      OK:         	White=14    	Black=14     Best:        	White=1     	Black=5} 0-1

[Event "7th Sharjah Masters 2024"]
[Site "Sharjah"]
[Date "2024.05.19"]
[Round "6.18"]
[White "Esipenko, Andrey"]
[Black "Vokhidov, Shamsiddin"]
[Result "0-1"]
[ECO "B40"]
[WhiteElo "2704"]
[BlackElo "2592"]
[Annotator "TA"]
[PlyCount "98"]
[EventDate "2024.05.13"]
[EventType "swiss"]
[EventCountry "UAE"]
[SourceTitle "playchess.com"]
[Source "ChessBase"]
[SourceQuality "1"]
[TimeControl "5400+30"]

{[%evp 9,98,0,0,9,12,0,22,13,7,0,0,0,0,0,0,21,16,0,12,0,0,0,0,0,8,0,21,8,115,-80,-40,-74,-43,-102,-123,-100,-105,-177,-172,-200,-193,-202,-191,-183,-142,-142,-148,-444,-412,-432,-245,-421,-389,-368,-275,-2192,-2120,-1812,-763,-919,-908,-915,-829,-767,-793,-2422,-2320,-1689,-891,-1842,-1601,-6444,-5886,-29969,-29968,-6852,-6847,-29979,-29980,-29980,-29981,-29981,-29982,-29981,-29982,-29988,-29989,-29989,-29987,-29987,-29987]} 1. e4 {[%emt 1:31:00]} c5 {[%emt 1:31:00][%cal Bc7c5,Bc5c4][%mdl 32]} 2. Nf3 {[%emt 0:00:30]} e6 {[%emt 0:00:30]} 3. c3 {[%emt 0:00:30]} Nf6 {[%emt 0:00:30]} 4. Bd3 {[%emt 0:00:30]} d5 {[%emt 0:00:30]} 5. e5 {[%emt 0:00:30]} Nfd7 {[%emt 0:00:30]} 6. Bc2 {[%emt 0:00:30]} c4 {[%emt 0:00:30]} 7. O-O {[%emt 0:00:30]} Nc6 {[%emt 0:00:30]} 8. Re1 {[%emt 0:00:30] The position is equal.} g5 {[%emt 0:00:30][%cal Bg7g5,Bg5g4][%mdl 32]} 9. b3 {[%emt 0:00:30]} g4 {[%emt 0:00:30]} 10. Nd4 {[%emt 0:00:30]} Ncxe5 {[%emt 0:00:30]} 11. bxc4 {[%emt 0:00:30]} dxc4 {[%emt 0:00:30]} 12. d3 {[%emt 0:00:30]} cxd3 {[%emt 0:00:30]} (12... Nxd3 {keeps more tension.} 13. Bxd3 cxd3 14. Qxg4 Nc5) 13. Bxd3 {[%emt 0:00:30]} a6 {[%emt 0:00:30]} 14. Bf1 {[%emt 0:00:30][%mdl 1024] White has compensation.} Be7 {[%emt 0:00:30]} 15. Nd2 {[%emt 0:00:30]} Qc7 {[%emt 0:00:30][%cal Ob7b6] Repels Nc4} 16. Ne4 {[%emt 0:00:30]} b6 {[%emt 0:00:30]} 17. Bf4 {[%emt 0:00:30]} h5 {[%emt 0:00:30]} 18. Nd2 {[%emt 0:00:30] aiming for Re3.} Bd6 {[%emt 0:00:30]} (18... Ra7 $1 $11 {remains equal.}) 19. Ne4 $2 {[%emt 0:00:30] [#]} (19. Nc4 $1 $16 {[%cal Od4e6] is forced if you want to stay better. Nxe6! is the strong threat.} Nf3+ (19... Nxc4 20. Nxe6 fxe6 21. Rxe6+ Kf7 22. Rxd6 $16) 20. Qxf3 gxf3 21. Nxd6+ Kf8 22. Rxe6 (22. gxf3 $2 Nc5 $19)) 19... Nf3+ $1 $17 {[%emt 0:00:30]} 20. Qxf3 {[%emt 0:00:30]} (20. Nxf3 Bxf4) 20... Bxf4 {[%emt 0:00:30]} (20... gxf3 21. Nxd6+ Kf8 22. Rxe6 $14 (22. gxf3 $2 e5 $19)) 21. Nd6+ {[%emt 0:00:30]} Bxd6 {[%emt 0:00:30]} 22. Qxa8 {[%emt 0:00:30]} O-O {[%emt 0:00:30]} 23. Bxa6 {[%emt 0:00:30] [#]} (23. Qc6 $17) 23... Nc5 $1 $19 {[%emt 0:00:30]} 24. Nb5 {[%emt 0:00:30]} Bxh2+ {[%emt 0:00:30]} 25. Kh1 {[%emt 0:00:30] [#]} Qe7 {[%emt 0:00:30][%cal Oe7h4] And now ...Qh4! would win.} 26. Kxh2 {[%emt 0:00:30]} (26. Bxc8 Qh4 27. Red1 Bg3+ 28. Kg1 Bxf2+ 29. Kf1 Be3 $19) 26... Bxa6 {[%emt 0:00:30]} 27. Qc6 {[%emt 0:00:30]} Nd3 $36 {[%emt 0:00:30][%csl LRe1,LRf2][%mdl 2048] White is under strong pressure.} 28. Qxb6 $2 {[%emt 0:00:30][%mdl 8192] This costs White the game.} (28. Kg1 $17 {is a better defense.}) 28... Bxb5 {[%emt 0:00:30]} 29. Re4 {[%emt 0:00:30]} Qg5 {[%emt 0:00:30]} (29... Bc6 $142 30. Qxc6 Qh4+ (30... Nxf2 31. Rd4 $15) 31. Kg1 Qxf2+ (31... Nxf2 32. Rd4 $15) 32. Kh1 Nf4 33. Rxf4 Qxf4) 30. Kg1 $2 {[%emt 0:00:30]} (30. a4 Nc5 31. Rb4) 30... Rc8 {[%emt 0:00:30]} 31. a4 {[%emt 0:00:30]} Bc6 {[%emt 0:00:30]} 32. Qa6 $2 {[%emt 0:00:30]} (32. Qe3 Qxe3 33. Rxe3) 32... Bxe4 {[%emt 0:00:30]} 33. Qxc8+ {[%emt 0:00:30]} Kg7 {[%emt 0:00:30]} (33... Kh7 $142 34. Qd7 Qf5) 34. Qc4 {[%emt 0:00:30]} Qf5 {[%emt 0:00:30]} 35. Qd4+ {[%emt 0:00:30]} Kh7 {[%emt 0:00:30][%cal Oe4g2] White must now prevent ...Bxg2!} 36. Qe3 {[%emt 0:00:30]} Nf4 {[%emt 0:00:30]} 37. Re1 {[%emt 0:00:30]} Bxg2 {[%emt 0:00:30]} 38. Qe5 {[%emt 0:00:30]} Qxe5 {[%emt 0:00:30]} 39. Rxe5 {[%emt 0:00:30]} h4 {[%emt 0:00:30]} 40. Kh2 {[%emt 0:00:30]} Bf3 {[%emt 0:00:30] ( -> ...Kg6)} 41. a5 {[%emt 0:00:30]} Kg6 {[%emt 0:00:30]} 42. Re3 {[%emt 0:00:30]} Ba8 {[%emt 0:00:30]} 43. a6 {[%emt 0:00:30]} Nh3 {[%emt 0:00:30] Black mates.} 44. f3 {[%emt 0:00:30] [#]} gxf3 $1 {[%emt 0:00:30]} 45. Re1 {[%emt 0:00:30]} Nf2 {[%emt 0:00:30]} 46. Rg1+ {[%emt 0:00:30]} Kf5 {[%emt 0:00:30]} 47. Rg8 {[%emt 0:00:30]} Ng4+ {[%emt 0:00:30]} 48. Kg1 {[%emt 0:00:30]} f2+ {[%emt 0:00:30]} 49. Kf1 {[%emt 0:00:30]} Be4 {[%emt 0:00:30] Weighted Error Value: White=0.89/Black=0.47.  Loses game:     	White=1     	---        Mistake:       	White=5     	Black=2      OK:         	White=8     	Black=10     Best:        	White=6     	Black=4      Strong:       	---       	Black=1      Brilliant:      	---       	Black=1} 0-1

[Event "7th Sharjah Masters 2024"]
[Site "Sharjah"]
[Date "2024.05.19"]
[Round "6.19"]
[White "Can, Emre"]
[Black "Sadhwani, Raunak"]
[Result "1/2-1/2"]
[ECO "E10"]
[WhiteElo "2549"]
[BlackElo "2654"]
[Annotator "TA"]
[PlyCount "71"]
[EventDate "2024.05.13"]
[EventType "swiss"]
[EventCountry "UAE"]
[SourceTitle "playchess.com"]
[Source "ChessBase"]
[SourceQuality "1"]
[TimeControl "5400+30"]

{[%evp 9,71,16,21,14,21,28,28,29,30,22,28,23,30,32,30,27,32,26,20,25,54,60,70,79,72,80,80,85,93,83,77,75,86,70,70,57,62,54,49,61,83,77,77,60,78,60,88,81,83,83,83,64,61,55,76,77,111,69,87,86,102,61,91,87]} 1. d4 {[%emt 1:31:00]} Nf6 {[%emt 1:31:00]} 2. c4 {[%emt 0:00:30]} e6 {[%emt 0:00:30]} 3. Nf3 {[%emt 0:00:30]} h6 {[%emt 0:00:30]} 4. g3 {[%emt 0:00:30]} Bb4+ {[%emt 0:00:30]} 5. Bd2 {[%emt 0:00:30]} Be7 {[%emt 0:00:30]} 6. Bg2 {[%emt 0:00:30]} O-O {[%emt 0:00:30]} 7. O-O {[%emt 0:00:30]} d5 {[%emt 0:00:30]} 8. Qc2 {[%emt 0:00:30] White has an edge.} c6 {[%emt 0:00:30]} 9. Bf4 {[%emt 0:00:30]} Nbd7 {[%emt 0:00:30]} 10. Rd1 {[%emt 0:00:30]} a5 {[%emt 0:00:30]} 11. Nc3 {[%emt 0:00:30]} dxc4 {[%emt 0:00:30]} 12. Nd2 {[%emt 0:00:30]} Nb6 {[%emt 0:00:30]} 13. e4 {[%emt 0:00:30][%mdl 1024] Wards off Nfd5. White has compensation.} Bd7 {[%emt 0:00:30]} 14. Nf3 {[%emt 0:00:30]} Be8 {[%emt 0:00:30]} 15. Qe2 {[%emt 0:00:30]} Rc8 {[%emt 0:00:30]} 16. Ne5 {[%emt 0:00:30]} Bd6 {[%emt 0:00:30][%cal Be7d6,Bd6b8,Bb8a7][%mdl 32]} 17. Be3 {[%emt 0:00:30]} ({Reject} 17. Nxc4 Nxc4 18. e5 Nd5 $11) 17... Bb8 {[%emt 0:00:30]} 18. Rac1 {[%emt 0:00:30]} Qe7 {[%emt 0:00:30]} 19. Nxc4 {[%emt 0:00:30]} Nxc4 {[%emt 0:00:30]} 20. Qxc4 {[%emt 0:00:30]} Ba7 {[%emt 0:00:30]} 21. h3 {[%emt 0:00:30]} Bd7 {[%emt 0:00:30]} 22. Qe2 {[%emt 0:00:30]} Rfd8 {[%emt 0:00:30]} 23. Na4 {[%emt 0:00:30]} Be8 {[%emt 0:00:30]} 24. Nc5 {[%emt 0:00:30]} Nh7 {[%emt 0:00:30]} 25. e5 {[%emt 0:00:30]} f5 {[%emt 0:00:30]} 26. f4 {[%emt 0:00:30]} Nf8 {[%emt 0:00:30]} 27. Kh2 {[%emt 0:00:30]} Ra8 {[%emt 0:00:30]} 28. Bf3 {[%emt 0:00:30]} Kh8 {[%emt 0:00:30]} 29. a3 {[%emt 0:00:30]} Bf7 {[%emt 0:00:30]} 30. b4 {[%emt 0:00:30]} axb4 {[%emt 0:00:30]} 31. axb4 {[%emt 0:00:30]} Bb6 {[%emt 0:00:30]} 32. Qb2 {[%emt 0:00:30]} Rab8 {[%emt 0:00:30]} 33. Rd2 {[%emt 0:00:30][%cal Bd1d2,Bd2c2,Bc2a2][%mdl 32]} Be8 {[%emt 0:00:30]} 34. Qb3 {[%emt 0:00:30] White is much more active.} Ra8 {[%emt 0:00:30]} 35. Rdc2 {[%emt 0:00:30]} Ra7 {[%emt 0:00:30]} 36. Ra2 {[%emt 0:00:30] Weighted Error Value: White=0.06 (flawless) /Black=0.09 (flawless) .  Inaccurate:     	White=2     	Black=4      OK:         	White=14    	Black=11} 1/2-1/2

[Event "7th Sharjah Masters 2024"]
[Site "Sharjah"]
[Date "2024.05.19"]
[Round "6.20"]
[White "Ter-Sahakyan, Samvel"]
[Black "Mchedlishvili, Mikheil"]
[Result "1-0"]
[ECO "E48"]
[WhiteElo "2652"]
[BlackElo "2569"]
[Annotator "TA"]
[PlyCount "69"]
[EventDate "2024.05.13"]
[EventType "swiss"]
[EventCountry "UAE"]
[SourceTitle "playchess.com"]
[Source "ChessBase"]
[SourceQuality "1"]
[TimeControl "5400+30"]

{[%evp 25,69,-10,0,0,0,0,0,0,0,-1,-3,-2,0,0,0,-9,-11,-6,-8,-44,18,13,15,6,6,9,36,49,35,54,40,22,27,31,32,17,85,89,87,76,313,294,653,664,29995,29996]} 1. d4 {[%emt 1:31:00]} Nf6 {[%emt 1:31:00]} 2. c4 {[%emt 0:00:30]} e6 {[%emt 0:00:30]} 3. Nc3 {[%emt 0:00:30]} Bb4 {[%emt 0:00:30]} 4. e3 {[%emt 0:00:30]} O-O {[%emt 0:00:30]} 5. Bd3 {[%emt 0:00:30]} c5 {[%emt 0:00:30]} 6. Nge2 {[%emt 0:00:30]} cxd4 {[%emt 0:00:30]} 7. exd4 {[%emt 0:00:30]} d5 {[%emt 0:00:30]} 8. cxd5 {[%emt 0:00:30]} Nxd5 {[%emt 0:00:30]} 9. O-O {[%emt 0:00:30]} Nc6 {[%emt 0:00:30]} 10. Bc2 {[%emt 0:00:30]} Bd6 {[%emt 0:00:30]} 11. Qd3 {[%emt 0:00:30]} g6 {[%emt 0:00:30]} 12. a3 {[%emt 0:00:30]} Nxc3 {[%emt 0:00:30]} 13. bxc3 {[%emt 0:00:30]} e5 {[%emt 0:00:30]} 14. Ng3 {[%emt 0:00:30] Repels Bf5} exd4 {[%emt 0:00:30]} 15. cxd4 {[%emt 0:00:30]} Bxg3 {[%emt 0:00:30]} 16. Qxg3 {[%emt 0:00:30] The position is equal.} Nxd4 {[%emt 0:00:30]} 17. Bd3 {[%emt 0:00:30] Inhibits Ne2+.} Bf5 {[%emt 0:00:30]} 18. Bb2 {[%emt 0:00:30] Threatens to win with Rfd1.} Bxd3 {[%emt 0:00:30]} 19. Qxd3 {[%emt 0:00:30]} Nc6 {[%emt 0:00:30]} 20. Qh3 {[%emt 0:00:30]} Qd2 {[%emt 0:00:30]} 21. Rab1 {[%emt 0:00:30]} Rad8 {[%emt 0:00:30]} 22. Ba1 {[%emt 0:00:30]} Qd7 {[%emt 0:00:30]} ({Black should try} 22... b6 $15) 23. Qh4 $11 {[%emt 0:00:30][%mdl 1024] aiming for Qf6. White has compensation.} f5 {[%emt 0:00:30]} 24. Qc4+ {[%emt 0:00:30]} Rf7 {[%emt 0:00:30]} 25. Rfe1 $40 {[%emt 0:00:30][%mdl 128] White mounts an attack.} h5 {[%emt 0:00:30]} 26. h3 {[%emt 0:00:30]} Kh7 {[%emt 0:00:30] [#]} 27. Rbd1 $1 {[%emt 0:00:30]} Re8 {[%emt 0:00:30]} 28. Qc3 {[%emt 0:00:30]} Rxe1+ {[%emt 0:00:30]} 29. Rxe1 {[%emt 0:00:30][%cal Bd1e1,Be1e6,Be6d6][%mdl 32]} Rf8 {[%emt 0:00:30] Dodges Qh8+. Black is weak on the dark squares} 30. Re6 {[%emt 0:00:30][%cal Oe6d6]} Qf7 {[%emt 0:00:30]} (30... Qd1+ $1 $11 {remains equal.} 31. Kh2 Qd7) 31. Rd6 $16 {[%emt 0:00:30] White is more active.} Qe7 {[%emt 0:00:30][%cal Of8g8]} 32. Qg3 {[%emt 0:00:30]} Rg8 {[%emt 0:00:30] [#]} (32... Qf7 $16) 33. Bf6 $1 $18 {[%emt 0:00:30]} Qe8 {[%emt 0:00:30]} (33... Qc7 34. Qd3 Nb8) 34. Qb3 {[%emt 0:00:30]} Qc8 {[%emt 0:00:30]} 35. Qf7+ {[%emt 0:00:30] Weighted Error Value: White=0.05 (flawless) /Black=0.57.  Loses game:     	---       	Black=1      Mistake:       	---       	Black=3      Inaccurate:     	White=1     	Black=2      OK:         	White=8     	Black=10     Best:        	White=2     	Black=1      Strong:       	White=1     	---} 1-0

[Event "7th Sharjah Masters 2024"]
[Site "Sharjah"]
[Date "2024.05.19"]
[Round "6.21"]
[White "Sargsyan, Shant"]
[Black "Gurel, Ediz"]
[Result "1/2-1/2"]
[ECO "C42"]
[WhiteElo "2637"]
[BlackElo "2578"]
[Annotator "TA"]
[PlyCount "57"]
[EventDate "2024.05.13"]
[EventType "swiss"]
[EventCountry "UAE"]
[SourceTitle "playchess.com"]
[Source "ChessBase"]
[SourceQuality "1"]
[TimeControl "5400+30"]

{[%evp 15,57,39,29,22,31,24,18,24,22,18,24,10,22,23,2,-20,-19,-13,-10,-14,-12,-8,0,-18,0,0,0,-17,0,0,3,14,8,2,6,0,0,0,20,8,7,2,0,0]} 1. e4 {[%emt 1:31:00]} e5 {[%emt 1:31:00]} 2. Nf3 {[%emt 0:00:30]} Nf6 {[%emt 0:00:30][%cal Bg8f6,Bf6e4,Be4d6][%mdl 32]} 3. Nxe5 {[%emt 0:00:30]} d6 {[%emt 0:00:30]} 4. Nf3 {[%emt 0:00:30]} Nxe4 {[%emt 0:00:30]} 5. d4 {[%emt 0:00:30]} d5 {[%emt 0:00:30]} 6. Bd3 {[%emt 0:00:30]} Bf5 {[%emt 0:00:30]} 7. O-O {[%emt 0:00:30]} Be7 {[%emt 0:00:30]} 8. Re1 {[%emt 0:00:30]} O-O {[%emt 0:00:30]} 9. Nbd2 {[%emt 0:00:30]} Nd6 {[%emt 0:00:30]} 10. Nf1 {[%emt 0:00:30]} c6 {[%emt 0:00:30]} 11. Bf4 {[%emt 0:00:30] And now Bxd6 would win.} Bxd3 {[%emt 0:00:30]} 12. Qxd3 {[%emt 0:00:30]} Na6 {[%emt 0:00:30] [#]} 13. h4 $1 {[%emt 0:00:30]} Nc7 {[%emt 0:00:30]} 14. Ng5 {[%emt 0:00:30][%csl Gg5][%cal Rd3h7]} g6 {[%emt 0:00:30]} 15. Qh3 {[%emt 0:00:30] The position is equal.} Nf5 {[%emt 0:00:30]} 16. c3 {[%emt 0:00:30]} h6 {[%emt 0:00:30]} 17. Bxc7 {[%emt 0:00:30]} Qxc7 {[%emt 0:00:30]} 18. Nf3 {[%emt 0:00:30]} h5 {[%emt 0:00:30]} 19. g4 {[%emt 0:00:30]} hxg4 {[%emt 0:00:30]} 20. Qxg4 {[%emt 0:00:30]} Nh6 {[%emt 0:00:30]} 21. Qg2 {[%emt 0:00:30]} Bf6 {[%emt 0:00:30]} 22. h5 {[%emt 0:00:30]} Kh7 {[%emt 0:00:30]} 23. hxg6+ {[%emt 0:00:30]} fxg6 {[%emt 0:00:30]} 24. Re6 {[%emt 0:00:30]} Rae8 {[%emt 0:00:30]} 25. Rae1 {[%emt 0:00:30]} Rxe6 {[%emt 0:00:30]} 26. Rxe6 {[%emt 0:00:30]} Qf7 {[%emt 0:00:30]} 27. Qh3 {[%emt 0:00:30]} Kg7 {[%emt 0:00:30]} 28. Ne3 {[%emt 0:00:30]} Bg5 {[%emt 0:00:30]} 29. Kg2 {[%emt 0:00:30] A rather calm draw.   Weighted Error Value: White=0.06 (flawless) /Black=0.03 (flawless) .  OK:         	White=8     	Black=12     Best:        	---       	Black=1} 1/2-1/2

[Event "7th Sharjah Masters 2024"]
[Site "Sharjah"]
[Date "2024.05.19"]
[Round "6.22"]
[White "Pranav Anand"]
[Black "Mishra, Abhimanyu"]
[Result "0-1"]
[ECO "B90"]
[WhiteElo "2532"]
[BlackElo "2634"]
[Annotator "RC"]
[PlyCount "126"]
[EventDate "2024.05.13"]
[EventType "swiss"]
[EventCountry "UAE"]
[SourceTitle "playchess.com"]
[Source "ChessBase"]
[SourceQuality "1"]
[TimeControl "5400+30"]

1. e4 {[%emt 0:00:06]} c5 {[%emt 0:00:05]} 2. Nf3 {[%emt 0:00:07]} d6 {[%emt 0:00:06]} 3. d4 {[%emt 0:00:05]} cxd4 {[%emt 0:00:07]} 4. Nxd4 {[%emt 0:00:06]} Nf6 {[%emt 0:00:14]} 5. Nc3 {[%emt 0:00:07]} a6 {[%emt 0:00:17]} 6. Be3 {[%emt 0:00:17]} e5 {[%emt 0:00:45]} 7. Nb3 {[%emt 0:00:08]} Be7 {[%emt 0:00:13]} 8. f3 {[%emt 0:00:07]} Be6 {[%emt 0:00:18]} 9. Qd2 {[%emt 0:00:07]} h6 {[%emt 0:00:14]} 10. O-O-O {[%emt 0:08:39]} h5 {[%emt 0:00:33]} 11. Kb1 {[%emt 0:01:29]} Nbd7 {[%emt 0:03:00]} 12. Bd3 {[%emt 0:05:43]} Qc7 {[%emt 0:10:42]} 13. h3 {[%emt 0:03:13]} h4 {[%emt 0:01:06]} 14. f4 {[%emt 0:01:54]} b5 {[%emt 0:04:56]} 15. fxe5 {[%emt 0:13:24]} dxe5 {[%emt 0:13:03]} 16. Nd5 {[%emt 0:00:36]} Bxd5 {[%emt 0:03:56]} 17. exd5 {[%emt 0:00:25]} Nb6 {[%emt 0:08:37]} 18. Bxb6 {[%emt 0:11:36]} Qxb6 {[%emt 0:00:17]} 19. Rhe1 {[%emt 0:06:43]} Bd6 {[%emt 0:03:56]} 20. Na5 {[%emt 0:03:38]} Kf8 {[%emt 0:06:08]} 21. Nc6 {[%emt 0:06:28]} Re8 {[%emt 0:01:31]} 22. Be4 {[%emt 0:00:20]} Nh5 {[%emt 0:08:14]} 23. c4 {[%emt 0:11:22]} Ng3 {[%emt 0:09:50]} 24. Qc3 {[%emt 0:02:31]} b4 {[%emt 0:09:46]} 25. Qf3 {[%emt 0:07:12]} Rh6 {[%emt 0:00:54]} 26. Qg4 {[%emt 0:00:05]} Qc7 {[%emt 0:06:56]} 27. Qg5 {[%emt 0:03:03]} Bc5 {[%emt 0:00:52]} 28. d6 {[%emt 0:01:41]} Bxd6 {[%emt 0:01:54]} 29. Bd5 {[%emt 0:00:02]} e4 {[%emt 0:01:18]} 30. Qe3 {[%emt 0:02:55]} Kg8 {[%emt 0:02:08]} 31. Rf1 {[%emt 0:01:13]} Nxf1 {[%emt 0:01:12]} 32. Rxf1 {[%emt 0:00:01]} Rf6 {[%emt 0:01:51]} 33. Rxf6 {[%emt 0:01:19]} gxf6 {[%emt 0:00:02]} 34. Qh6 {[%emt 0:00:06]} Bf8 {[%emt 0:00:38]} 35. Qg6+ {[%emt 0:01:43]} Bg7 {[%emt 0:00:06]} 36. Nd4 {[%emt 0:00:14]} Kf8 {[%emt 0:00:40]} 37. Qh5 {[%emt 0:00:40]} e3 {[%emt 0:01:05]} 38. Ne2 {[%emt 0:00:05]} f5 {[%emt 0:00:50]} 39. Qxf5 {[%emt 0:00:23]} Re7 {[%emt 0:00:36]} 40. Kc2 {[%emt 0:00:48]} Qe5 {[%emt 0:00:36]} 41. Qxe5 {[%emt 0:00:06]} Bxe5 {[%emt 0:00:09]} 42. b3 {[%emt 0:00:12]} Bd6 {[%emt 0:00:31]} 43. Kd3 {[%emt 0:00:29]} Bc5 {[%emt 0:00:09]} 44. Ng1 {[%emt 0:00:06]} a5 {[%emt 0:01:05]} 45. Ke2 {[%emt 0:00:07]} Ra7 {[%emt 0:00:23]} 46. Bc6 {[%emt 0:01:26]} Ra6 {[%emt 0:00:14]} 47. Bb7 {[%emt 0:00:05]} Ra7 {[%emt 0:00:17]} 48. Bc6 {[%emt 0:00:05]} Ra6 {[%emt 0:00:01]} 49. Bb7 {[%emt 0:00:07]} Rg6 {[%emt 0:01:16]} 50. Ke1 {[%emt 0:04:46]} Ke7 {[%emt 0:00:14]} 51. Ne2 {[%emt 0:00:09]} Rd6 {[%emt 0:00:35]} 52. Bd5 {[%emt 0:00:12]} a4 {[%emt 0:00:26]} 53. Nc1 {[%emt 0:00:06]} Ra6 {[%emt 0:00:18]} 54. bxa4 {[%emt 0:00:58]} Rxa4 {[%emt 0:00:17]} 55. Be4 {[%emt 0:00:04]} Ra3 {[%emt 0:00:47]} 56. Nb3 {[%emt 0:00:06]} Kd6 {[%emt 0:00:36]} 57. Bb1 {[%emt 0:00:03]} Ra8 {[%emt 0:00:57]} 58. Ke2 {[%emt 0:00:06]} f6 {[%emt 0:00:30]} 59. Nxc5 {[%emt 0:01:15]} Kxc5 {[%emt 0:00:06]} 60. Kxe3 {[%emt 0:00:04]} Kxc4 {[%emt 0:00:50]} 61. Bg6 {[%emt 0:00:06]} Ra7 {[%emt 0:00:43]} 62. Kf3 {[%emt 0:00:53]} Kc3 {[%emt 0:00:16]} 63. g3 {[%emt 0:00:12]} Rg7 {[%emt 0:00:17]} 0-1